[Event "*** Titled Tuesday Blitz"]
[Site "Chess.com"]
[Date "2018.04.03"]
[Round "8"]
[White "Kislov_Oleg"]
[Black "Bad4life"]
[Result "1-0"]
[WhiteElo "2266"]
[BlackElo "2375"]
[TimeControl "180+2"]
[EndTime "14:42:55 PDT"]
[Termination "Kislov_Oleg won by resignation"]

1. d4 {[%clk 0:03:01.9]} 1... Nf6 {[%clk 0:02:59.8]} 2. Nc3 {[%clk 0:03:02.8]}
2... g6 {[%clk 0:03:00.5]} 3. e4 {[%clk 0:03:03.7]} 3... d6 {[%clk 0:03:02]} 4.
f3 {[%clk 0:03:04.5]} 4... Bg7 {[%clk 0:03:03.1]} 5. Be3 {[%clk 0:03:06.1]} 5...
O-O {[%clk 0:03:04.7]} 6. Qd2 {[%clk 0:03:07.6]} 6... Nbd7 {[%clk 0:03:05.9]} 7.
O-O-O {[%clk 0:03:07.8]} 7... a6 {[%clk 0:03:06.5]} 8. Bh6 {[%clk 0:03:07.7]}
8... b5 {[%clk 0:03:05.1]} 9. h4 {[%clk 0:03:08.3]} 9... c5 {[%clk 0:03:05.3]}
10. dxc5 {[%clk 0:03:02.2]} 10... Nxc5 {[%clk 0:03:04.3]} 11. Bxg7 {[%clk
0:02:53.9]} 11... Kxg7 {[%clk 0:03:05.2]} 12. e5 {[%clk 0:02:54.4]} 12... Nh5
{[%clk 0:02:51.5]} 13. exd6 {[%clk 0:02:52.5]} 13... e5 {[%clk 0:02:51.9]} 14.
Qd5 {[%clk 0:02:41.6]} 14... b4 {[%clk 0:02:42.9]} 15. Qxc5 {[%clk 0:02:36.5]}
15... bxc3 {[%clk 0:02:41.5]} 16. Qxe5+ {[%clk 0:02:34.1]} 16... Kg8 {[%clk
0:02:38.3]} 17. Qxc3 {[%clk 0:02:31.2]} 17... Ng3 {[%clk 0:02:33.2]} 18. Rh2
{[%clk 0:02:21.3]} 18... Nxf1 {[%clk 0:02:26.1]} 19. Rxf1 {[%clk 0:02:18.7]}
19... Bf5 {[%clk 0:02:27.2]} 20. g4 {[%clk 0:02:14.7]} 20... Qxd6 {[%clk
0:02:25.2]} 21. Rd2 {[%clk 0:02:14.4]} 21... Qf4 {[%clk 0:02:05.2]} 22. gxf5
{[%clk 0:02:13.5]} 22... Rac8 {[%clk 0:02:05]} 23. Qd4 {[%clk 0:02:04.5]} 23...
Qxf5 {[%clk 0:02:03.2]} 24. Qe4 {[%clk 0:01:57.6]} 24... Qb5 {[%clk 0:01:59.7]}
25. Rfd1 {[%clk 0:01:57.1]} 25... Rb8 {[%clk 0:01:58.3]} 26. c3 {[%clk
0:01:44.4]} 26... Rfe8 {[%clk 0:01:50.5]} 27. Qc2 {[%clk 0:01:39.6]} 27... Rb7
{[%clk 0:01:49.4]} 28. Ne2 {[%clk 0:01:38.6]} 28... Qh5 {[%clk 0:01:46.5]} 29.
Qa4 {[%clk 0:01:30.4]} 29... Rbb8 {[%clk 0:01:31.5]} 30. Qg4 {[%clk 0:01:27.4]}
30... Qh6 {[%clk 0:01:29.2]} 31. Nf4 {[%clk 0:01:25.2]} 31... Rec8 {[%clk
0:01:22.2]} 32. Qg5 {[%clk 0:01:18.2]} 32... Qg7 {[%clk 0:01:20.9]} 33. Rd8+
{[%clk 0:01:18.2]} 33... Rxd8 {[%clk 0:01:20.9]} 34. Rxd8+ {[%clk 0:01:18.4]}
34... Rxd8 {[%clk 0:01:22.4]} 35. Qxd8+ {[%clk 0:01:19.1]} 35... Qf8 {[%clk
0:01:24.3]} 36. Qxf8+ {[%clk 0:01:19.8]} 36... Kxf8 {[%clk 0:01:26.2]} 37. b4
{[%clk 0:01:20.8]} 37... f6 {[%clk 0:01:26.4]} 38. a4 {[%clk 0:01:21.6]} 38...
g5 {[%clk 0:01:27.8]} 39. hxg5 {[%clk 0:01:22.6]} 39... fxg5 {[%clk 0:01:29.3]}
40. Ne6+ {[%clk 0:01:24.1]} 1-0

[Event "*** Titled Tuesday Blitz"]
[Site "Chess.com"]
[Date "2018.04.03"]
[Round "8"]
[White "Al_Shima"]
[Black "JozefKneht"]
[Result "1-0"]
[WhiteElo "2301"]
[BlackElo "2414"]
[TimeControl "180+2"]
[EndTime "14:42:58 PDT"]
[Termination "Al_Shima won by resignation"]

1. b3 {[%clk 0:03:01.9]} 1... d5 {[%clk 0:02:54.8]} 2. Bb2 {[%clk 0:03:02.8]}
2... Nf6 {[%clk 0:02:52.2]} 3. e3 {[%clk 0:02:59.3]} 3... c6 {[%clk 0:02:51]} 4.
Nf3 {[%clk 0:02:57.6]} 4... Bg4 {[%clk 0:02:50.1]} 5. Be2 {[%clk 0:02:57.4]}
5... Nbd7 {[%clk 0:02:49.3]} 6. d4 {[%clk 0:02:54.8]} 6... e6 {[%clk 0:02:48.6]}
7. Nbd2 {[%clk 0:02:54.7]} 7... Be7 {[%clk 0:02:40.2]} 8. h3 {[%clk 0:02:55.1]}
8... Bh5 {[%clk 0:02:37.4]} 9. c4 {[%clk 0:02:54.7]} 9... Bg6 {[%clk 0:02:36.3]}
10. Nh4 {[%clk 0:02:53.2]} 10... Bb4 {[%clk 0:02:15.3]} 11. Nxg6 {[%clk
0:02:52.8]} 11... hxg6 {[%clk 0:02:15.4]} 12. a3 {[%clk 0:02:53.7]} 12... Bxd2+
{[%clk 0:02:11.7]} 13. Qxd2 {[%clk 0:02:53.8]} 13... Ne4 {[%clk 0:02:13.3]} 14.
Qc2 {[%clk 0:02:53.6]} 14... Qh4 {[%clk 0:02:03]} 15. Bd3 {[%clk 0:02:47.4]}
15... Ndf6 {[%clk 0:02:00.5]} 16. g3 {[%clk 0:02:30.2]} 16... Qh5 {[%clk
0:01:35.3]} 17. Qe2 {[%clk 0:02:21.6]} 17... Qxe2+ {[%clk 0:01:31.7]} 18. Kxe2
{[%clk 0:02:20.6]} 18... g5 {[%clk 0:01:31.3]} 19. Rh2 {[%clk 0:02:12.7]} 19...
Kd7 {[%clk 0:01:28.9]} 20. Rah1 {[%clk 0:02:13.2]} 20... Rh6 {[%clk 0:01:20.7]}
21. Kf3 {[%clk 0:01:44.8]} 21... Nd2+ {[%clk 0:01:15.1]} 22. Kg2 {[%clk
0:01:42.5]} 22... Nxb3 {[%clk 0:01:14.7]} 23. Bc3 {[%clk 0:01:33.7]} 23... Ne4
{[%clk 0:00:44.7]} 24. Rb1 {[%clk 0:01:21.9]} 24... Nxc3 {[%clk 0:00:37.5]} 25.
Rxb3 {[%clk 0:01:22.7]} 25... Ne4 {[%clk 0:00:34.4]} 26. Bxe4 {[%clk 0:01:21.6]}
26... Kc8 {[%clk 0:00:35.2]} 27. Bd3 {[%clk 0:01:18.2]} 27... dxc4 {[%clk
0:00:32]} 28. Bxc4 {[%clk 0:01:18.7]} 28... Kd7 {[%clk 0:00:32.4]} 29. Rxb7+
{[%clk 0:01:18.8]} 1-0

[Event "*** Titled Tuesday Blitz"]
[Site "Chess.com"]
[Date "2018.04.03"]
[Round "8"]
[White "Zhuu96"]
[Black "KRASAVCHIK2002"]
[Result "1-0"]
[WhiteElo "2726"]
[BlackElo "1982"]
[TimeControl "180+2"]
[EndTime "14:43:05 PDT"]
[Termination "Zhuu96 won by checkmate"]

1. e4 {[%clk 0:03:00.9]} 1... c5 {[%clk 0:03:00.4]} 2. Nf3 {[%clk 0:03:01.3]}
2... d6 {[%clk 0:02:58.5]} 3. d4 {[%clk 0:03:02.8]} 3... cxd4 {[%clk 0:02:59.1]}
4. Nxd4 {[%clk 0:03:04.7]} 4... Nf6 {[%clk 0:02:59.6]} 5. Nc3 {[%clk 0:03:06.2]}
5... a6 {[%clk 0:03:00.7]} 6. Bg5 {[%clk 0:03:06.7]} 6... e6 {[%clk 0:03:01.6]}
7. f4 {[%clk 0:03:06.3]} 7... Qb6 {[%clk 0:03:02.4]} 8. a3 {[%clk 0:03:05.6]}
8... Be7 {[%clk 0:03:01]} 9. Be2 {[%clk 0:02:43.7]} 9... Nc6 {[%clk 0:02:58.4]}
10. Nb3 {[%clk 0:02:44.5]} 10... h6 {[%clk 0:02:54.9]} 11. Bxf6 {[%clk
0:02:44.4]} 11... Bxf6 {[%clk 0:02:31.9]} 12. Qxd6 {[%clk 0:02:43.7]} 12...
Bxc3+ {[%clk 0:02:32.4]} 13. bxc3 {[%clk 0:02:43.8]} 13... Qe3 {[%clk
0:02:33.4]} 14. Rd1 {[%clk 0:02:28.7]} 14... Qxc3+ {[%clk 0:02:28.2]} 15. Kf2
{[%clk 0:02:26.7]} 15... Qf6 {[%clk 0:01:59.9]} 16. c4 {[%clk 0:02:22]} 16... g5
{[%clk 0:01:52.4]} 17. g3 {[%clk 0:02:15.2]} 17... gxf4 {[%clk 0:01:52.5]} 18.
gxf4 {[%clk 0:02:15.5]} 18... Qh4+ {[%clk 0:01:51.1]} 19. Ke3 {[%clk 0:02:16.3]}
19... Rg8 {[%clk 0:00:44.5]} 20. Rhg1 {[%clk 0:02:13]} 20... Rxg1 {[%clk
0:00:43.9]} 21. Rxg1 {[%clk 0:02:13]} 21... Ne7 {[%clk 0:00:43.7]} 22. Qe5
{[%clk 0:02:09.4]} 22... Qxh2 {[%clk 0:00:36.5]} 23. Qh8+ {[%clk 0:02:09.3]}
23... Kd7 {[%clk 0:00:20.2]} 24. Rd1+ {[%clk 0:02:11.2]} 24... Kc6 {[%clk
0:00:13.2]} 25. Rg1 {[%clk 0:02:13.1]} 25... Qxg1+ {[%clk 0:00:13.7]} 26. Kd3
{[%clk 0:02:11.2]} 26... Qg3+ {[%clk 0:00:14.4]} 27. Kc2 {[%clk 0:02:11.7]}
27... Qxf4 {[%clk 0:00:15.1]} 28. Qd8 {[%clk 0:02:12.6]} 28... Qxe4+ {[%clk
0:00:12.2]} 29. Bd3 {[%clk 0:02:13.9]} 29... Qg2+ {[%clk 0:00:13.1]} 30. Kc3
{[%clk 0:02:15.4]} 30... Qg7+ {[%clk 0:00:13.4]} 31. Nd4+ {[%clk 0:02:16.4]}
31... Kc5 {[%clk 0:00:12.8]} 32. Qxe7+ {[%clk 0:02:05]} 32... Kb6 {[%clk
0:00:11.5]} 33. c5+ {[%clk 0:02:06.3]} 33... Ka7 {[%clk 0:00:12.3]} 34. Qc7
{[%clk 0:02:06.4]} 34... e5 {[%clk 0:00:08.4]} 35. Nc6# {[%clk 0:02:06]} 1-0

[Event "*** Titled Tuesday Blitz"]
[Site "Chess.com"]
[Date "2018.04.03"]
[Round "8"]
[White "TastyFrenchFries"]
[Black "Albertu"]
[Result "1-0"]
[WhiteElo "2323"]
[BlackElo "2235"]
[TimeControl "180+2"]
[EndTime "14:43:07 PDT"]
[Termination "TastyFrenchFries won by resignation"]

1. e4 {[%clk 0:03:01.7]} 1... c5 {[%clk 0:02:59.9]} 2. Nf3 {[%clk 0:02:56.9]}
2... d6 {[%clk 0:03:00.9]} 3. Bb5+ {[%clk 0:02:57.6]} 3... Nd7 {[%clk
0:03:01.3]} 4. O-O {[%clk 0:02:56]} 4... Nf6 {[%clk 0:03:01.5]} 5. Re1 {[%clk
0:02:55.5]} 5... e5 {[%clk 0:02:59]} 6. c3 {[%clk 0:02:52.4]} 6... a6 {[%clk
0:02:52.8]} 7. Bd3 {[%clk 0:02:41.8]} 7... Be7 {[%clk 0:02:51.5]} 8. Bc2 {[%clk
0:02:37.5]} 8... O-O {[%clk 0:02:40.6]} 9. d3 {[%clk 0:02:36.1]} 9... b5 {[%clk
0:02:38.5]} 10. Nbd2 {[%clk 0:02:37.2]} 10... Bb7 {[%clk 0:02:38.9]} 11. a4
{[%clk 0:02:35.9]} 11... Qb6 {[%clk 0:02:38.9]} 12. b3 {[%clk 0:02:32.4]} 12...
Rfc8 {[%clk 0:02:28.4]} 13. Nf1 {[%clk 0:02:24.4]} 13... c4 {[%clk 0:02:11.6]}
14. bxc4 {[%clk 0:02:21.6]} 14... bxc4 {[%clk 0:02:11.6]} 15. d4 {[%clk
0:02:22.6]} 15... Qa5 {[%clk 0:02:04.5]} 16. Ne3 {[%clk 0:02:12.2]} 16... Nxe4
{[%clk 0:01:52.4]} 17. Nf5 {[%clk 0:01:39.5]} 17... Bf8 {[%clk 0:01:15.8]} 18.
Bxe4 {[%clk 0:01:36.5]} 18... Bxe4 {[%clk 0:01:09.8]} 19. Rxe4 {[%clk 0:01:37]}
19... Qxc3 {[%clk 0:01:08]} 20. Ra3 {[%clk 0:01:37.3]} 20... Qb4 {[%clk
0:01:05.3]} 21. dxe5 {[%clk 0:01:36.3]} 21... Qb1 {[%clk 0:00:50.7]} 22. Nd2
{[%clk 0:01:16.8]} 22... Qb7 {[%clk 0:00:51.4]} 23. Nh6+ {[%clk 0:00:59.8]}
23... gxh6 {[%clk 0:00:45.6]} 24. Qg4+ {[%clk 0:01:00.4]} 24... Kh8 {[%clk
0:00:41.1]} 25. Rg3 {[%clk 0:01:01.3]} 1-0

[Event "*** Titled Tuesday Blitz"]
[Site "Chess.com"]
[Date "2018.04.03"]
[Round "8"]
[White "RichardABates"]
[Black "toad"]
[Result "1-0"]
[WhiteElo "2224"]
[BlackElo "2233"]
[TimeControl "180+2"]
[EndTime "14:43:15 PDT"]
[Termination "RichardABates won on time"]

1. d4 {[%clk 0:03:01.9]} 1... Nf6 {[%clk 0:03:00.3]} 2. Nf3 {[%clk 0:03:02.7]}
2... g6 {[%clk 0:03:01]} 3. g3 {[%clk 0:03:03.8]} 3... Bg7 {[%clk 0:03:00.1]} 4.
Bg2 {[%clk 0:03:05.3]} 4... O-O {[%clk 0:02:56.6]} 5. O-O {[%clk 0:03:06.6]}
5... d5 {[%clk 0:02:57.3]} 6. c4 {[%clk 0:03:07.2]} 6... c5 {[%clk 0:02:58]} 7.
cxd5 {[%clk 0:03:02.9]} 7... cxd4 {[%clk 0:02:46.6]} 8. Nxd4 {[%clk 0:02:57.8]}
8... Nxd5 {[%clk 0:02:47.7]} 9. Nc3 {[%clk 0:02:54.8]} 9... Nxc3 {[%clk
0:02:45.4]} 10. bxc3 {[%clk 0:02:55]} 10... Nc6 {[%clk 0:02:45.8]} 11. Nxc6
{[%clk 0:02:44]} 11... bxc6 {[%clk 0:02:47.7]} 12. Qxd8 {[%clk 0:02:25.7]} 12...
Rxd8 {[%clk 0:02:49.6]} 13. Bxc6 {[%clk 0:02:26.4]} 13... Rb8 {[%clk 0:02:51]}
14. Bf4 {[%clk 0:02:26.4]} 14... Rb2 {[%clk 0:02:42.7]} 15. Rfd1 {[%clk
0:02:22.7]} 15... Rxd1+ {[%clk 0:01:41]} 16. Rxd1 {[%clk 0:02:22.5]} 16... Bh3
{[%clk 0:01:41.8]} 17. Rd8+ {[%clk 0:01:46.3]} 17... Bf8 {[%clk 0:01:43]} 18. f3
{[%clk 0:01:47]} 18... Kg7 {[%clk 0:01:25]} 19. Kf2 {[%clk 0:01:43.7]} 19... f6
{[%clk 0:00:57.4]} 20. Bd5 {[%clk 0:01:35.5]} 20... e5 {[%clk 0:00:56.2]} 21.
Be3 {[%clk 0:01:34.4]} 21... Rb1 {[%clk 0:00:27.6]} 22. g4 {[%clk 0:01:21.6]}
22... f5 {[%clk 0:00:14]} 23. Rd7+ {[%clk 0:01:19.6]} 23... Kh8 {[%clk 0:00:13]}
24. Bg5 {[%clk 0:01:13.7]} 24... Bc5+ {[%clk 0:00:04.9]} 25. Kg3 {[%clk
0:01:12.3]} 1-0

[Event "*** Titled Tuesday Blitz"]
[Site "Chess.com"]
[Date "2018.04.03"]
[Round "8"]
[White "GMSrinath"]
[Black "1977Ivan"]
[Result "0-1"]
[WhiteElo "2699"]
[BlackElo "2485"]
[TimeControl "180+2"]
[EndTime "14:43:33 PDT"]
[Termination "1977Ivan won by resignation"]

1. c4 {[%clk 0:03:01.3]} 1... e5 {[%clk 0:03:00.6]} 2. g3 {[%clk 0:03:01.7]}
2... Nc6 {[%clk 0:03:02]} 3. Bg2 {[%clk 0:03:01.4]} 3... Bc5 {[%clk 0:03:03.5]}
4. Nc3 {[%clk 0:03:01.3]} 4... d6 {[%clk 0:03:05]} 5. e3 {[%clk 0:03:02.8]} 5...
a6 {[%clk 0:03:05.6]} 6. Nge2 {[%clk 0:03:04.3]} 6... Ba7 {[%clk 0:03:06.7]} 7.
a3 {[%clk 0:03:05.8]} 7... h5 {[%clk 0:03:05]} 8. h3 {[%clk 0:03:06.4]} 8... h4
{[%clk 0:03:03.3]} 9. g4 {[%clk 0:03:04.6]} 9... f5 {[%clk 0:03:04.8]} 10. f3
{[%clk 0:02:45.5]} 10... Nf6 {[%clk 0:03:01]} 11. b4 {[%clk 0:02:46.3]} 11...
O-O {[%clk 0:02:58.1]} 12. Bb2 {[%clk 0:02:45.4]} 12... Qe8 {[%clk 0:02:54]} 13.
Qc2 {[%clk 0:02:45]} 13... f4 {[%clk 0:02:35.3]} 14. exf4 {[%clk 0:02:28.3]}
14... Nd4 {[%clk 0:02:32.9]} 15. Nxd4 {[%clk 0:02:20.5]} 15... exd4+ {[%clk
0:02:28.1]} 16. Ne2 {[%clk 0:02:20.6]} 16... c5 {[%clk 0:02:18]} 17. Qd3 {[%clk
0:01:57.1]} 17... b5 {[%clk 0:02:17.9]} 18. bxc5 {[%clk 0:01:44.1]} 18... dxc5
{[%clk 0:02:17]} 19. f5 {[%clk 0:01:45.6]} 19... Bb7 {[%clk 0:02:02.8]} 20. O-O
{[%clk 0:01:45]} 20... bxc4 {[%clk 0:02:03.4]} 21. Qxc4+ {[%clk 0:00:41.3]}
21... Bd5 {[%clk 0:02:03.1]} 22. Qc2 {[%clk 0:00:33.6]} 22... d3 {[%clk
0:01:55.8]} 23. Qc3 {[%clk 0:00:34.4]} 23... dxe2 {[%clk 0:01:53.6]} 24. Rfe1
{[%clk 0:00:36.3]} 24... Rb8 {[%clk 0:01:52.5]} 25. g5 {[%clk 0:00:36.4]} 25...
Rb3 {[%clk 0:01:51.6]} 26. Qc2 {[%clk 0:00:37.4]} 26... c4+ {[%clk 0:01:49.8]}
27. Kh1 {[%clk 0:00:37.4]} 27... Nh5 {[%clk 0:01:48.7]} 28. d4 {[%clk
0:00:38.8]} 28... Ng3+ {[%clk 0:01:48.2]} 29. Kh2 {[%clk 0:00:39.5]} 29... Bxf3
{[%clk 0:01:49.2]} 30. Qxc4+ {[%clk 0:00:38.7]} 30... Kh7 {[%clk 0:01:46.7]} 31.
Qxb3 {[%clk 0:00:37.9]} 31... Bxg2 {[%clk 0:01:47.4]} 32. Kxg2 {[%clk
0:00:39.7]} 32... Rxf5 {[%clk 0:01:48.4]} 33. Qd3 {[%clk 0:00:20.1]} 33... Qg6
{[%clk 0:01:39.4]} 34. Qd2 {[%clk 0:00:14.1]} 34... Qc6+ {[%clk 0:01:36.5]} 0-1

[Event "*** Titled Tuesday Blitz"]
[Site "Chess.com"]
[Date "2018.04.03"]
[Round "8"]
[White "Alopekos"]
[Black "TrimitziosP7"]
[Result "0-1"]
[WhiteElo "2336"]
[BlackElo "2603"]
[TimeControl "180+2"]
[EndTime "14:43:37 PDT"]
[Termination "TrimitziosP7 won by resignation"]

1. e4 {[%clk 0:03:01.2]} 1... e5 {[%clk 0:03:01.3]} 2. Nf3 {[%clk 0:03:01.9]}
2... Nc6 {[%clk 0:03:02.7]} 3. Bb5 {[%clk 0:03:02.5]} 3... Nf6 {[%clk 0:03:03]}
4. d3 {[%clk 0:03:02.5]} 4... Bc5 {[%clk 0:03:03.5]} 5. c3 {[%clk 0:03:02.5]}
5... Qe7 {[%clk 0:03:04.1]} 6. O-O {[%clk 0:02:58.9]} 6... a6 {[%clk 0:03:05.5]}
7. Ba4 {[%clk 0:02:42.2]} 7... b5 {[%clk 0:03:06.3]} 8. Bb3 {[%clk 0:02:33.8]}
8... d6 {[%clk 0:03:07.5]} 9. a4 {[%clk 0:02:31.8]} 9... Rb8 {[%clk 0:03:05.7]}
10. axb5 {[%clk 0:02:31.8]} 10... axb5 {[%clk 0:03:07.6]} 11. d4 {[%clk
0:02:32.7]} 11... exd4 {[%clk 0:03:06.8]} 12. cxd4 {[%clk 0:02:31.6]} 12... Bb6
{[%clk 0:03:07.8]} 13. Nc3 {[%clk 0:00:59.2]} 13... O-O {[%clk 0:03:03.5]} 14.
Bg5 {[%clk 0:00:56.7]} 14... Bg4 {[%clk 0:03:00.8]} 15. Nd5 {[%clk 0:00:54.3]}
15... Qd8 {[%clk 0:02:59.8]} 16. Bxf6 {[%clk 0:00:04.6]} 16... gxf6 {[%clk
0:03:01.7]} 17. h3 {[%clk 0:00:05.3]} 17... Bh5 {[%clk 0:03:01.2]} 18. g4 {[%clk
0:00:02.9]} 18... Bg6 {[%clk 0:03:02.4]} 19. Re1 {[%clk 0:00:04]} 19... Kg7
{[%clk 0:03:02.3]} 20. Qd3 {[%clk 0:00:02.9]} 20... Ne7 {[%clk 0:03:02.6]} 21.
Nxb6 {[%clk 0:00:02.5]} 21... Rxb6 {[%clk 0:03:03.5]} 22. Ra7 {[%clk 0:00:02.7]}
22... c5 {[%clk 0:03:04.4]} 23. dxc5 {[%clk 0:00:03.5]} 23... Rc6 {[%clk
0:03:04.1]} 24. cxd6 {[%clk 0:00:04.2]} 24... Rxd6 {[%clk 0:03:06]} 25. Qe3
{[%clk 0:00:05.7]} 25... Nc6 {[%clk 0:03:05.1]} 26. Ra6 {[%clk 0:00:05.5]} 26...
Rd3 {[%clk 0:03:03.9]} 27. Qb6 {[%clk 0:00:05.3]} 27... Rxf3 {[%clk 0:03:02.8]}
28. Bd5 {[%clk 0:00:04.6]} 28... Ne5 {[%clk 0:03:02.5]} 29. Kg2 {[%clk
0:00:03.4]} 29... Rd3 {[%clk 0:03:02.4]} 30. Qc5 {[%clk 0:00:03.7]} 30... Rd2
{[%clk 0:03:00.9]} 31. Qc3 {[%clk 0:00:03]} 31... Rxd5 {[%clk 0:03:00.1]} 32.
exd5 {[%clk 0:00:03.9]} 32... Qxd5+ {[%clk 0:03:02]} 33. Kg3 {[%clk 0:00:04.6]}
33... Rd8 {[%clk 0:03:00.8]} 34. f4 {[%clk 0:00:05.7]} 34... Qd3+ {[%clk
0:03:01.2]} 35. Re3 {[%clk 0:00:06.7]} 35... Qxc3 {[%clk 0:02:59.2]} 36. Rxc3
{[%clk 0:00:08]} 36... Nd3 {[%clk 0:02:56.3]} 37. f5 {[%clk 0:00:09.1]} 37...
Nxb2 {[%clk 0:02:57.1]} 38. fxg6 {[%clk 0:00:08.8]} 38... hxg6 {[%clk 0:02:59]}
39. Rb6 {[%clk 0:00:08.5]} 39... Na4 {[%clk 0:02:58.3]} 40. Rcc6 {[%clk
0:00:09.4]} 40... Nxb6 {[%clk 0:02:59.2]} 41. Rxb6 {[%clk 0:00:11.3]} 41... Rd5
{[%clk 0:03:00.9]} 42. Kf4 {[%clk 0:00:12.5]} 42... g5+ {[%clk 0:03:01.8]} 43.
Ke4 {[%clk 0:00:13.7]} 43... Re5+ {[%clk 0:03:03.6]} 44. Kd4 {[%clk 0:00:15.1]}
44... Kg6 {[%clk 0:03:05.3]} 45. Rc6 {[%clk 0:00:13]} 45... Re2 {[%clk
0:03:05.9]} 46. Rb6 {[%clk 0:00:12.6]} 46... Rh2 {[%clk 0:03:07]} 47. Rxb5
{[%clk 0:00:11.4]} 47... Rxh3 {[%clk 0:03:08.5]} 48. Ke4 {[%clk 0:00:13.3]}
48... Rh4 {[%clk 0:03:08.8]} 49. Kf3 {[%clk 0:00:13.7]} 49... Rh1 {[%clk
0:03:08.7]} 50. Rb6 {[%clk 0:00:10.3]} 50... Rf1+ {[%clk 0:03:09.6]} 51. Kg3
{[%clk 0:00:11]} 51... Rf4 {[%clk 0:03:11.5]} 52. Ra6 {[%clk 0:00:11.8]} 52...
Kg7 {[%clk 0:03:12.8]} 53. Ra5 {[%clk 0:00:11.9]} 53... f5 {[%clk 0:03:13.5]}
54. Rxf5 {[%clk 0:00:04.5]} 54... Rxf5 {[%clk 0:03:12.6]} 55. gxf5 {[%clk
0:00:06.4]} 55... f6 {[%clk 0:03:14.5]} 56. Kg4 {[%clk 0:00:07.9]} 56... Kf7
{[%clk 0:03:16.4]} 57. Kh5 {[%clk 0:00:09.3]} 57... Ke7 {[%clk 0:03:17.2]} 58.
Kg4 {[%clk 0:00:09.9]} 58... Kd6 {[%clk 0:03:18.5]} 59. Kh5 {[%clk 0:00:11.8]}
59... Ke5 {[%clk 0:03:19.8]} 60. Kg6 {[%clk 0:00:13.7]} 60... g4 {[%clk
0:03:21.3]} 0-1

[Event "*** Titled Tuesday Blitz"]
[Site "Chess.com"]
[Date "2018.04.03"]
[Round "8"]
[White "ilmago"]
[Black "chesstatour"]
[Result "1-0"]
[WhiteElo "1943"]
[BlackElo "1975"]
[TimeControl "180+2"]
[EndTime "14:43:59 PDT"]
[Termination "ilmago won on time"]

1. e4 {[%clk 0:03:01]} 1... c6 {[%clk 0:02:57.9]} 2. d4 {[%clk 0:03:00.2]} 2...
d5 {[%clk 0:02:59.8]} 3. exd5 {[%clk 0:02:59.7]} 3... cxd5 {[%clk 0:03:01.7]} 4.
c3 {[%clk 0:03:01.1]} 4... Nc6 {[%clk 0:03:02.2]} 5. Nf3 {[%clk 0:03:00.3]} 5...
g6 {[%clk 0:03:03.7]} 6. Bf4 {[%clk 0:02:59.6]} 6... Bg7 {[%clk 0:03:03.5]} 7.
Nbd2 {[%clk 0:03:00.6]} 7... Nh6 {[%clk 0:03:04.3]} 8. Bd3 {[%clk 0:03:00.9]}
8... O-O {[%clk 0:03:04.9]} 9. O-O {[%clk 0:03:01.3]} 9... f6 {[%clk 0:03:06.3]}
10. Re1 {[%clk 0:03:01]} 10... Nf7 {[%clk 0:03:06.7]} 11. Qb3 {[%clk 0:02:58.5]}
11... e5 {[%clk 0:03:05]} 12. dxe5 {[%clk 0:02:46.5]} 12... fxe5 {[%clk
0:03:04]} 13. Bg3 {[%clk 0:02:40.9]} 13... e4 {[%clk 0:03:03.4]} 14. Bxe4 {[%clk
0:02:41.8]} 14... dxe4 {[%clk 0:03:04.1]} 15. Nxe4 {[%clk 0:02:43.7]} 15... Kh8
{[%clk 0:02:20.6]} 16. Rad1 {[%clk 0:02:35.2]} 16... Qb6 {[%clk 0:02:07.8]} 17.
Qc2 {[%clk 0:02:23.2]} 17... Bf5 {[%clk 0:01:56.4]} 18. Nh4 {[%clk 0:02:22.9]}
18... Bxe4 {[%clk 0:01:53.6]} 19. Rxe4 {[%clk 0:02:22.7]} 19... Rae8 {[%clk
0:01:26.5]} 20. Rde1 {[%clk 0:02:18.9]} 20... Rxe4 {[%clk 0:01:22.5]} 21. Rxe4
{[%clk 0:02:20.8]} 21... Nfe5 {[%clk 0:01:00.4]} 22. b4 {[%clk 0:02:09.5]} 22...
g5 {[%clk 0:00:51.3]} 23. Nf3 {[%clk 0:02:04]} 23... Nxf3+ {[%clk 0:00:25.5]}
24. gxf3 {[%clk 0:02:05.9]} 24... Qd8 {[%clk 0:00:16.7]} 25. b5 {[%clk
0:01:59.1]} 25... Na5 {[%clk 0:00:16.8]} 26. Qe2 {[%clk 0:01:46.5]} 26... Qf6
{[%clk 0:00:10.6]} 27. f4 {[%clk 0:01:43.8]} 27... Qxc3 {[%clk 0:00:06.7]} 28.
fxg5 {[%clk 0:01:40.8]} 28... Qc1+ {[%clk 0:00:07.4]} 29. Kg2 {[%clk 0:01:41.3]}
29... Qxg5 {[%clk 0:00:08.3]} 30. Re7 {[%clk 0:01:39.9]} 30... Qd5+ {[%clk
0:00:07.1]} 31. Kg1 {[%clk 0:01:40.5]} 31... Qf5 {[%clk 0:00:05.7]} 32. Qd2
{[%clk 0:01:25.3]} 32... b6 {[%clk 0:00:04.2]} 33. Rxa7 {[%clk 0:01:09.6]} 33...
Nc4 {[%clk 0:00:03.7]} 34. Qe2 {[%clk 0:01:08.8]} 1-0